Workbook

Sheet CasaPLUS
C2: COTIZACIÓN SEGURO DOMICILIARIO CASAPLUS
AA3: Dólares ( US$ ) | AC3: A. Programa Básico | AG3: Concreto Armado
C4: Contratante | AA4: Sol ( S/ ) | AC4: B. Programa Básico + Programa Full | AG4: Ladrillo y Cemento
C5: Asegurado | AG5: Estructura de Acero
C6: Corredor | K6: Oficina | O6: Ejecutivo Comercial | AA6: Tipo de Cambio | AB6: 4 | AG6: Madera y/o Adobe y/o quincha
C7: Ubicación del riesgo
C8: Datos SBS | D8: Tipo Estructura | E8: Concreto Armado | J8: =IF(E8=AG6,"No cotizar"," ") ->  | K8: Año Construc. | O8: Nro. Pisos | T8: Nro. Sótanos
C9: COBERTURAS SOLICITADAS | D9: B. Programa Básico + Programa Full
C10: Vigencia | D10: 1 Año | K10: Fecha de Cotización | O10: =TODAY() -> 2020-01-15
C11: Moneda | D11: Dólares ( US$ ) | K11: Validez de la Cotización | O11: 15 días
C13: Valores Declarados | D13: =D11 -> Dólares ( US$ ) | K13: Primas | P13: Plan Estandar | S13: Plan Premium | V13: Plan Gold
C14: - Vivienda (Edificio) | D14: 40000 | K14: Prima Comercial | P14: =IF($D$11="Dólares ( US$ )","US$","S/") -> US$ | Q14: =IF(AND($D$11="Dólares ( US$ )",(I99<100)),100,IF(AND($D$11="Sol ( S/ )",I99<325),325,I99)) -> 100 | S14: =IF($D$11="Dólares ( US$ )","US$","S/") -> US$ | T14: =IF(AND($D$11="Dólares ( US$ )",(J99<100)),100,IF(AND($D$11="Sol ( S/ )",J99<325),325,J99)) -> No Aplica | V14: =IF($D$11="Dólares ( US$ )","US$","S/") -> US$ | W14: =IF(AND($D$11="Dólares ( US$ )",(K99<100)),100,IF(AND($D$11="Sol ( S/ )",K99<325),325,K99)) -> No aplica
C15: - Contenido | D15: 0 | K15: Prima Comercial + IGV Anual | P15: =IF($D$11="Dólares ( US$ )","US$","S/") -> US$ | Q15: =+Q14*1.18 -> 118 | S15: =IF($D$11="Dólares ( US$ )","US$","S/") -> US$ | T15: =IF(T14="No Aplica","No aplica",T14*1.18) -> No aplica | V15: =IF($D$11="Dólares ( US$ )","US$","S/") -> US$ | W15: =IF(W14="No aplica","No aplica",W14*1.18) -> No aplica
C16: TOTAL ASEGURADO | D16: =SUM(D14:D15) -> 40000 | K16: Descuento | N16: 0 | P16: =IF(N16>0%,"Ver con Area Técnica LP"," ") -> 
D17: =+IF(D9=AC3,1,0) -> 0 | K17: Prima Comercial + IGV Anual | P17: =IF($D$11="Dólares ( US$ )","US$","S/") -> US$ | Q17: =IF(AND($D$11="Dólares ( US$ )",(Q14*(1-N16)<118)),118,IF(AND($D$11="Sol ( S/ )",Q14*(1-N16)<400),400,Q15*(1-N16))) -> 118 | S17: =IF($D$11="Dólares ( US$ )","US$","S/") -> US$ | T17: =IF(T14="No Aplica","No aplica",IF(AND($D$11="Dólares ( US$ )",(T15*(1-N16)<118)),118,IF(AND($D$11="Sol ( S/ )",T15*(1-N16)<383.5),383.5,T15*(1-N16)))) -> No aplica | V17: =IF($D$11="Dólares ( US$ )","US$","S/") -> US$ | W17: =IF(W14="No aplica","No aplica",IF(AND($D$11="Dólares ( US$ )",(W15*(1-N16)<118)),118,IF(AND($D$11="Sol ( S/ )",W15*(1-N16)<383.5),383.5,W15*(1-N16)))) -> No aplica
C20: Coberturas Principales | F20: SA Maxima Plan Estandar | G20: SA Maxima Plan Premium | H20: SA Maxima Plan Gold | I20: Suma Asegurada | K20: =+D11 -> Dólares ( US$ ) | L20: Deducibles | Z20: Plan Estandar | AB20: Plan Premium | AD20: Plan Gold | AF20: deducibles minimos en dolares
I21: P. Estandar | J21: P. Premium | K21: P. Gold | Z21: SA Dolares | AA21: SA Soles | AB21: SA Dolares | AC21: SA Soles | AD21: SA Dolares | AE21: SA Soles
C22: I. PROGRAMA BASICO
C23: Incendio, Riesgos de la Naturaleza y Riesgos Politicos Este seguro cubre la destrucción o daño físico directo de la vivienda y su contenido como consecuencia directa de: incendio, explosión, daños por agua, lluvia e inundación, terremoto, temblor, erupción volcánica, maremoto (Tsunami), caída de aeronaves, impacto de vehículos, daños por humo, huelga y conmoción civil, daño malicioso, vandalismo y/o terrorismo. | I23: =+D16 -> 40000 | J23: =+D16 -> 40000 | K23: =+D16 -> 40000 | L23: Todo evento cubierto: 10% del Monto Indemnizable mínimo
F24: Hasta el 100% de la Suma Asegurada (SA) de la Vivienda + Contenido | L24: =IF($D$11="Dólares ( US$ )","US$","S/") -> US$ | M24: =IF($D$11="Dólares ( US$ )",AF24,(AF24*$AB$6)) -> 200 | N24: ,excepto: | AF24: 200
L25: Huelga, conmoción civil, daño malicioso, vandalismo y/o terrorismo: | AF25: 200
L26: 5% del monto indemnizable mínimo | S26: =IF($D$11="Dólares ( US$ )","US$","S/") -> US$ | T26: =IF($D$11="Dólares ( US$ )",AF25,(AF25*$AB$6)) -> 200
L27: Terremoto, temblor erupción volcánica, maremoto (tsunami), salida de mar, marejada, oleaje: 1% de la Suma Asegurada de la Vivienda | AF27: 500
L28: + Contenido, minimo | P28: =IF($D$11="Dólares ( US$ )","US$","S/") -> US$ | Q28: =IF($D$11="Dólares ( US$ )",AF27,(AF27*$AB$6)) -> 500 | S28: ,lo que resulte mayor
C29: Coberturas Adicionales
C30: Rotura de vidrios, espejos y unidades sanitarias, hasta el 20% de la Suma Asegurada de la Vivienda, máximo: | F30: 10000 | G30: 20000 | H30: 30000 | I30: =IF($D$11="Dólares ( US$ )",Z30,AA30) -> 8000 | J30: =IF($D$11="Dólares ( US$ )",AB30,AC30) -> 8000 | K30: =IF($D$11="Dólares ( US$ )",AD30,AE30) -> 8000 | L30: 10% del Monto Indemnizable, mínimo | S30: =IF($D$11="Dólares ( US$ )","US$","S/") -> US$ | T30: =IF($D$11="Dólares ( US$ )",AF30,(AF30*$AB$6)) -> 30 | Z30: =IF($D$14*0.2<F30,$D$14*0.2,F30) -> 8000 | AA30: =IF($D$14*0.2<F30*$AB$6,$D$14*0.2,F30*$AB$6) -> 8000 | AB30: =IF($D$14*0.2<G30,$D$14*0.2,G30) -> 8000 | AC30: =IF($D$14*0.2<G30*$AB$6,$D$14*0.2,G30*$AB$6) -> 8000 | AD30: =IF($D$14*0.2<H30,$D$14*0.2,H30) -> 8000 | AE30: =IF($D$14*0.2<H30*$AB$6,$D$14*0.2,H30*$AB$6) -> 8000 | AF30: 30
C31: Gastos de remoción de escombros, hasta el 20% de la Suma Asegurada de la Vivienda + Contenido, máximo: | F31: 30000 | G31: 40000 | H31: 50000 | I31: =IF($D$11="Dólares ( US$ )",Z31,AA31) -> 8000 | J31: =IF($D$11="Dólares ( US$ )",AB31,AC31) -> 8000 | K31: =IF($D$11="Dólares ( US$ )",AD31,AE31) -> 8000 | L31: Sin Deducible | Z31: =IF($D$16*0.2<F31,$D$16*0.2,F31) -> 8000 | AA31: =IF($D$16*0.2<F31*$AB$6,$D$16*0.2,F31*$AB$6) -> 8000 | AB31: =IF($D$16*0.2<G31,$D$16*0.2,G31) -> 8000 | AC31: =IF($D$16*0.2<G31*$AB$6,$D$16*0.2,G31*$AB$6) -> 8000 | AD31: =IF($D$16*0.2<H31,$D$16*0.2,H31) -> 8000 | AE31: =IF($D$16*0.2<H31*$AB$6,$D$16*0.2,H31*$AB$6) -> 8000
C32: Gastos de extinción y contención del siniestro, hasta el 20% de la Suma Asegurada de la Vivienda + Contenido, máximo: | F32: 30000 | G32: 40000 | H32: 50000 | I32: =IF($D$11="Dólares ( US$ )",Z32,AA32) -> 8000 | J32: =IF($D$11="Dólares ( US$ )",AB32,AC32) -> 8000 | K32: =IF($D$11="Dólares ( US$ )",AD32,AE32) -> 8000 | L32: Sin Deducible | Z32: =IF($D$16*0.2<F32,$D$16*0.2,F32) -> 8000 | AA32: =IF($D$16*0.2<F32*$AB$6,$D$16*0.2,F32*$AB$6) -> 8000 | AB32: =IF($D$16*0.2<G32,$D$16*0.2,G32) -> 8000 | AC32: =IF($D$16*0.2<G32*$AB$6,$D$16*0.2,G32*$AB$6) -> 8000 | AD32: =IF($D$16*0.2<H32,$D$16*0.2,H32) -> 8000 | AE32: =IF($D$16*0.2<H32*$AB$6,$D$16*0.2,H32*$AB$6) -> 8000
C33: Robo de instalaciones fijas, hasta el 20% de la Suma Asegurada de la Vivienda, máximo: | F33: 10000 | G33: 20000 | H33: 30000 | I33: =IF($D$11="Dólares ( US$ )",Z33,AA33) -> 8000 | J33: =IF($D$11="Dólares ( US$ )",AB33,AC33) -> 8000 | K33: =IF($D$11="Dólares ( US$ )",AD33,AE33) -> 8000 | L33: 15% del Monto Indemnizable, mínimo | S33: =IF($D$11="Dólares ( US$ )","US$","S/") -> US$ | T33: =IF($D$11="Dólares ( US$ )",AF33,(AF33*$AB$6)) -> 200 | Z33: =IF($D$14*0.2<F33,$D$14*0.2,F33) -> 8000 | AA33: =IF($D$14*0.2<F33*$AB$6,$D$14*0.2,F33*$AB$6) -> 8000 | AB33: =IF($D$14*0.2<G33,$D$14*0.2,G33) -> 8000 | AC33: =IF($D$14*0.2<G33*$AB$6,$D$14*0.2,G33*$AB$6) -> 8000 | AD33: =IF($D$14*0.2<H33,$D$14*0.2,H33) -> 8000 | AE33: =IF($D$14*0.2<H33*$AB$6,$D$14*0.2,H33*$AB$6) -> 8000 | AF33: 200
F34: 50000 | G34: 100000 | H34: 150000 | I34: =IF(I33=0,0,IF($D$11="Dólares ( US$ )",Z35,AA35)) -> 50000 | J34: =IF(I33=0,0,IF($D$11="Dólares ( US$ )",AB35,AC35)) -> 100000 | K34: =IF(I33=0,0,IF($D$11="Dólares ( US$ )",AD35,AE35)) -> 150000
C35: Responsabilidad Civil Extracontractual Frente a Terceros, hasta: | L35: =IF($D$11="Dólares ( US$ )","US$","S/") -> US$ | M35: =IF($D$11="Dólares ( US$ )",AF35,(AF35*$AB$6)) -> 200 | Z35: =+F34 -> 50000 | AA35: =+F34*AB6 -> 200000 | AB35: =+G34 -> 100000 | AC35: =+G34*AB6 -> 400000 | AD35: =+H34 -> 150000 | AE35: =+H34*AB6 -> 600000 | AF35: 200
C36: Gastos por emergencias médicas a terceros hasta US$ 1,000 por persona, y en agregado vigencia máximo: | F36: 1000 | G36: 2000 | H36: 3000 | I36: =IF(I33=0,0,IF($D$11="Dólares ( US$ )",Z36,AA36)) -> 1000 | J36: =IF(I33=0,0,IF($D$11="Dólares ( US$ )",AB36,AC36)) -> 2000 | K36: =IF(I33=0,0,IF($D$11="Dólares ( US$ )",AD36,AE36)) -> 3000 | L36: Sin Deducible | Z36: =+F36 -> 1000 | AA36: =+F36*AB6 -> 4000 | AB36: =+G36 -> 2000 | AC36: =+G36*AB6 -> 8000 | AD36: =+H36 -> 3000 | AE36: =+H36*AB6 -> 12000
C37: Responsabilidad Civil Patronal (frente al trabajador del hogar), por evento y en agregado vigencia hasta: | F37: 10000 | G37: 15000 | H37: 20000 | I37: =IF(I33=0,0,IF($D$11="Dólares ( US$ )",Z37,AA37)) -> 10000 | J37: =IF(I33=0,0,IF($D$11="Dólares ( US$ )",AB37,AC37)) -> 15000 | K37: =IF(I33=0,0,IF($D$11="Dólares ( US$ )",AD37,AE37)) -> 20000 | L37: Sin Deducible | Z37: =+F37 -> 10000 | AA37: =+F37*AB6 -> 40000 | AB37: =+G37 -> 15000 | AC37: =+G37*AB6 -> 60000 | AD37: =+H37 -> 20000 | AE37: =+H37*AB6 -> 80000
C38: Responsabilidad civil por posesión de mascotas, hasta: | F38: 1000 | G38: 2000 | H38: 3000 | I38: =IF(I33=0,0,IF($D$11="Dólares ( US$ )",Z38,AA38)) -> 1000 | J38: =IF(I33=0,0,IF($D$11="Dólares ( US$ )",AB38,AC38)) -> 2000 | K38: =IF(I33=0,0,IF($D$11="Dólares ( US$ )",AD38,AE38)) -> 3000 | L38: Sin Deducible | Z38: =+F38 -> 1000 | AA38: =+F38*AB6 -> 4000 | AB38: =+G38 -> 2000 | AC38: =+G38*AB6 -> 8000 | AD38: =+H38 -> 3000 | AE38: =+H38*AB6 -> 12000
C39: II. PROGRAMA FULL
C40: Robo de Bienes Contenidos en la Vivienda hasta: | F40: Hasta el 100% de la Suma Asegurada del Contenido | I40: =IF($D$15<1,"No Aplica",$D$15) -> No Aplica | J40: =IF($D$15<1,"No Aplica",$D$15) -> No Aplica | K40: =IF($D$15<1,"No Aplica",$D$15) -> No Aplica | L40: 15% del Monto Indemnizable, mínimo | S40: =IF($D$11="Dólares ( US$ )","US$","S/") -> US$ | T40: =IF($D$11="Dólares ( US$ )",AF40,(AF40*$AB$6)) -> 500 | AF40: 500
C42: Robo de Contenidos Especiales (joyas, alhajas, perlas, platería, relojes personales, obras de arte, pieles, instrumentos musicales y colecciones en general) dentro o fuera de los predios, con un límite por bien de US$1,000. La Suma Asegurada está limitada al 30% de la suma asegurada del Contenido, hasta: | F42: 3000 | G42: 5000 | H42: 15000 | I42: =IF($D$11="Dólares ( US$ )",Z42,AA42) -> No Aplica | J42: =IF($D$11="Dólares ( US$ )",AB42,AC42) -> No Aplica | K42: =IF($D$11="Dólares ( US$ )",AD42,AE42) -> No Aplica | L42: 15% del Monto Indemnizable, mínimo | S42: =IF($D$11="Dólares ( US$ )","US$","S/") -> US$ | T42: =IF($D$11="Dólares ( US$ )",AF42,(AF42*$AB$6)) -> 300 | Z42: =IF($D$15<1,"No Aplica",IF($D$15*0.3<F42,$D$15*0.3,F42)) -> No Aplica | AA42: =IF($D$15<1,"No Aplica",IF($D$15*0.3<F42*$AB$6,$D$15*0.3,F42*$AB$6)) -> No Aplica | AB42: =IF($D$15<1,"No Aplica",IF($D$15*0.3<G42,$D$15*0.3,G42)) -> No Aplica | AC42: =IF($D$15<1,"No Aplica",IF($D$15*0.3<G42*$AB$6,$D$15*0.3,G42*$AB$6)) -> No Aplica | AD42: =IF($D$15<1,"No Aplica",IF($D$15*0.3<H42,$D$15*0.3,H42)) -> No Aplica | AE42: =IF($D$15<1,"No Aplica",IF($D$15*0.3<H42*$AB$6,$D$15*0.3,H42*$AB$6)) -> No Aplica | AF42: 300
C43: Robo de dinero en Efectivo dentro de la Vivienda, hasta: | F43: 500 | G43: 750 | H43: 1000 | I43: =IF($D$11="Dólares ( US$ )",Z43,AA43) -> No Aplica | J43: =IF($D$11="Dólares ( US$ )",AB43,AC43) -> No Aplica | K43: =IF($D$11="Dólares ( US$ )",AD43,AE43) -> No Aplica | L43: =IF($D$11="Dólares ( US$ )","US$","S/") -> US$ | M43: =IF($D$11="Dólares ( US$ )",AF43,(AF43*$AB$6)) -> 50 | Z43: =IF($D$15<1,"No Aplica",F43) -> No Aplica | AA43: =IF($D$15<1,"No Aplica",F43*$AB$6) -> No Aplica | AB43: =IF($D$15<1,"No Aplica",G43) -> No Aplica | AC43: =IF($D$15<1,"No Aplica",G43*$AB$6) -> No Aplica | AD43: =IF($D$15<1,"No Aplica",H43) -> No Aplica | AE43: =IF($D$15<1,"No Aplica",H43*$AB$6) -> No Aplica | AF43: 50
C44: Robo de dinero en tránsito solo por asalto, hasta: | F44: 500 | G44: 750 | H44: 1000 | I44: =IF($D$11="Dólares ( US$ )",Z44,AA44) -> No Aplica | J44: =IF($D$11="Dólares ( US$ )",AB44,AC44) -> No Aplica | K44: =IF($D$11="Dólares ( US$ )",AD44,AE44) -> No Aplica | L44: =IF($D$11="Dólares ( US$ )","US$","S/") -> US$ | M44: =IF($D$11="Dólares ( US$ )",AF44,(AF44*$AB$6)) -> 50 | Z44: =IF(D15<1,"No Aplica",F44) -> No Aplica | AA44: =IF(D15<1,"No Aplica",F44*$AB$6) -> No Aplica | AB44: =IF($D$15<1,"No Aplica",G44) -> No Aplica | AC44: =IF($D$15<1,"No Aplica",G44*$AB$6) -> No Aplica | AD44: =IF($D$15<1,"No Aplica",H44) -> No Aplica | AE44: =IF($D$15<1,"No Aplica",H44*$AB$6) -> No Aplica | AF44: 50
C45: Daños internos de equipos electrónicos y equipos eléctricos, hasta el 10% de la Suma Asegurada del Contenido, máximo: | F45: 3000 | G45: 4000 | H45: 5000 | I45: =IF($D$11="Dólares ( US$ )",Z45,AA45) -> No Aplica | J45: =IF($D$11="Dólares ( US$ )",AB45,AC45) -> No Aplica | K45: =IF($D$11="Dólares ( US$ )",AD45,AE45) -> No Aplica | L45: 10% del Monto Indemnizable, mínimo | S45: =IF($D$11="Dólares ( US$ )","US$","S/") -> US$ | T45: =IF($D$11="Dólares ( US$ )",AF45,(AF45*$AB$6)) -> 50 | Z45: =IF($D$15<1,"No Aplica",IF($D$15*0.1<F45,$D$15*0.1,F45)) -> No Aplica | AA45: =IF($D$15<1,"No Aplica",IF($D$15*0.1<F45*$AB$6,$D$15*0.1,F45*$AB$6)) -> No Aplica | AB45: =IF($D$15<1,"No Aplica",IF($D$15*0.1<G45,$D$15*0.1,G45)) -> No Aplica | AC45: =IF($D$15<1,"No Aplica",IF($D$15*0.1<G45*$AB$6,$D$15*0.1,G45*$AB$6)) -> No Aplica | AD45: =IF($D$15<1,"No Aplica",IF($D$15*0.1<H45,$D$15*0.1,H45)) -> No Aplica | AE45: =IF($D$15<1,"No Aplica",IF($D$15*0.1<H45*$AB$6,$D$15*0.1,H45*$AB$6)) -> No Aplica | AF45: 50
C46: Asistencia médica urgente por lesiones en un robo con un límite por persona de US$1,000 y en agregado vigencia máximo: | F46: 5000 | G46: 7500 | H46: 10000
I47: =IF($D$11="Dólares ( US$ )",Z47,AA47) -> No Aplica | J47: =IF($D$11="Dólares ( US$ )",AB47,AC47) -> No Aplica | K47: =IF($D$11="Dólares ( US$ )",AD47,AE47) -> No Aplica | L47: Sin Deducible | Z47: =IF($D$15<1,"No Aplica",F46) -> No Aplica | AA47: =IF($D$15<1,"No Aplica",F46*$AB$6) -> No Aplica | AB47: =IF($D$15<1,"No Aplica",G46) -> No Aplica | AC47: =IF($D$15<1,"No Aplica",G46*$AB$6) -> No Aplica | AD47: =IF($D$15<1,"No Aplica",H46) -> No Aplica | AE47: =IF($D$15<1,"No Aplica",H46*$AB$6) -> No Aplica
C48: Alojamiento temporal por inhabilitación de la vivienda, con un límite mensual de US$ 1,000 y en agregado vigencia máximo: | F48: 3000 | G48: 5000 | H48: 10000 | I48: =IF(I47="No Aplica"," No Aplica",IF($D$11="Dólares ( US$ )",Z48,AA48)) -> No Aplica | J48: =IF(I47="No Aplica"," No Aplica",IF($D$11="Dólares ( US$ )",AB48,AC48)) -> No Aplica | K48: =IF(I47="No Aplica"," No Aplica",IF($D$11="Dólares ( US$ )",AD48,AE48)) -> No Aplica | L48: Sin Deducible | Z48: =F48 -> 3000 | AA48: =F48*$AB$6 -> 12000 | AB48: =G48 -> 5000 | AC48: =G48*$AB$6 -> 20000 | AD48: =H48 -> 10000 | AE48: =H48*$AB$6 -> 40000
C49: Daños durante el traslado del contenido asegurado al alojamiento temporal, hasta el 50% de la Suma Asegurada del Contenido, máximo: | F49: 3000 | G49: 5000 | H49: 10000 | I49: No Aplica | J49: No Aplica | K49: No Aplica | L49: 10% del Monto Indemnizable, mínimo | S49: =IF($D$11="Dólares ( US$ )","US$","S/") -> US$ | T49: =IF($D$11="Dólares ( US$ )",AF49,(AF49*$AB$6)) -> 50 | Z49: =IF($D$15<1,"No Aplica",IF($D$15*0.5<F49,$D$15*0.5,F49)) -> No Aplica | AA49: =IF($D$15<1,"No Aplica",IF($D$15*0.5<F49*$AB$6,$D$15*0.5,F49*$AB$6)) -> No Aplica | AB49: =IF($D$15<1,"No Aplica",IF($D$15*0.5<G49,$D$15*0.5,G49)) -> No Aplica | AC49: =IF($D$15<1,"No Aplica",IF($D$15*0.5<G49*$AB$6,$D$15*0.5,G49*$AB$6)) -> No Aplica | AD49: =IF($D$15<1,"No Aplica",IF($D$15*0.5<H49,$D$15*0.5,H49)) -> No Aplica | AE49: =IF($D$15<1,"No Aplica",IF($D$15*0.5<H49*$AB$6,$D$15*0.5,H49*$AB$6)) -> No Aplica | AF49: 50
C50: Perdida de alimentos en equipos de refrigeración, hasta el 5% de la Suma Asegurada del Contenido, máximo: | F50: 750 | G50: 1000 | H50: 1500 | I50: No Aplica | J50: No Aplica | K50: No Aplica | L50: 10% del Monto Indemnizable, mínimo | S50: =IF($D$11="Dólares ( US$ )","US$","S/") -> US$ | T50: =IF($D$11="Dólares ( US$ )",AF50,(AF50*$AB$6)) -> 50 | Z50: =IF($D$15<1,"No Aplica",IF($D$15*0.05<F50,$D$15*0.05,F50)) -> No Aplica | AA50: =IF($D$15<1,"No Aplica",IF($D$15*0.05<F50*$AB$6,$D$15*0.05,F50*$AB$6)) -> No Aplica | AB50: =IF($D$15<1,"No Aplica",IF($D$15*0.05<G50,$D$15*0.05,G50)) -> No Aplica | AC50: =IF($D$15<1,"No Aplica",IF($D$15*0.05<G50*$AB$6,$D$15*0.05,G50*$AB$6)) -> No Aplica | AD50: =IF($D$15<1,"No Aplica",IF($D$15*0.05<H50,$D$15*0.05,H50)) -> No Aplica | AE50: =IF($D$15<1,"No Aplica",IF($D$15*0.05<H50*$AB$6,$D$15*0.05,H50*$AB$6)) -> No Aplica | AF50: 50
C51: Pérdida de equipaje por viaje dentro o fuera del país, hasta el 10% de la Suma Asegurada del Contenido, máximo: | F51: 750 | G51: 1000 | H51: 1500 | I51: =IF($D$11="Dólares ( US$ )",Z51,AA51) -> No Aplica | J51: No Aplica | K51: No Aplica | L51: 10% del Monto Indemnizable, mínimo | S51: =IF($D$11="Dólares ( US$ )","US$","S/") -> US$ | T51: =IF($D$11="Dólares ( US$ )",AF51,(AF51*$AB$6)) -> 50 | Z51: =IF($D$15<1,"No Aplica",IF($D$15*0.1<F51,$D$15*0.1,F51)) -> No Aplica | AA51: =IF($D$15<1,"No Aplica",IF($D$15*0.1<F51*$AB$6,$D$15*0.1,F51*$AB$6)) -> No Aplica | AB51: =IF($D$15<1,"No Aplica",IF($D$15*0.1<G51,$D$15*0.1,G51)) -> No Aplica | AC51: =IF($D$15<1,"No Aplica",IF($D$15*0.1<G51*$AB$6,$D$15*0.1,G51*$AB$6)) -> No Aplica | AD51: =IF($D$15<1,"No Aplica",IF($D$15*0.1<H51,$D$15*0.1,H51)) -> No Aplica | AE51: =IF($D$15<1,"No Aplica",IF($D$15*0.1<H51*$AB$6,$D$15*0.1,H51*$AB$6)) -> No Aplica | AF51: 50
C52: Deshonestidad o apropiación ilícita de trabajadores del hogar, hasta: | F52: 750 | G52: 1000 | H52: 2000 | I52: No Aplica | J52: No Aplica | K52: No Aplica | L52: 10% del Monto Indemnizable, mínimo | S52: =IF($D$11="Dólares ( US$ )","US$","S/") -> US$ | T52: =IF($D$11="Dólares ( US$ )",AF52,(AF52*$AB$6)) -> 200 | Z52: =IF($D$15<1,"No Aplica",F52) -> No Aplica | AA52: =IF($D$15<1,"No Aplica",(F52*$AB$6)) -> No Aplica | AB52: =IF($D$15<1,"No Aplica",G52) -> No Aplica | AC52: =IF($D$15<1,"No Aplica",(G52*$AB$6)) -> No Aplica | AD52: =IF($D$15<1,"No Aplica",H52) -> No Aplica | AE52: =IF($D$15<1,"No Aplica",(H52*$AB$6)) -> No Aplica | AF52: 200
C53: Compensación por Muerte accidental del Asegurado o de su cónyuge o conviviente | F53: 7500 | G53: 10000 | H53: 20000 | I53: =IF($D$11="Dólares ( US$ )",Z53,AA53) -> No Aplica | J53: =IF($D$11="Dólares ( US$ )",AB53,AC53) -> No Aplica | K53: =IF($D$11="Dólares ( US$ )",AD53,AE53) -> No Aplica | L53: Sin Deducible | Z53: =IF($D$15<1,"No Aplica",F53) -> No Aplica | AA53: =IF($D$15<1,"No Aplica",(F53*$AB$6)) -> No Aplica | AB53: =IF($D$15<1,"No Aplica",G53) -> No Aplica | AC53: =IF($D$15<1,"No Aplica",(G53*$AB$6)) -> No Aplica | AD53: =IF($D$15<1,"No Aplica",H53) -> No Aplica | AE53: =IF($D$15<1,"No Aplica",(H53*$AB$6)) -> No Aplica
C54: Gastos de Curación de empleados (Trabajadores del hogar), hasta US$ 1,000 por evento, y en agregado vigencia hasta: | F54: 1000 | G54: 2000 | H54: 3000 | I54: =IF($D$11="Dólares ( US$ )",Z54,AA54) -> No Aplica | J54: =IF($D$11="Dólares ( US$ )",AB54,AC54) -> No Aplica | K54: =IF($D$11="Dólares ( US$ )",AD54,AE54) -> No Aplica | L54: Sin Deducible | Z54: =IF($D$15<1,"No Aplica",F54) -> No Aplica | AA54: =IF($D$15<1,"No Aplica",(F54*$AB$6)) -> No Aplica | AB54: =IF($D$15<1,"No Aplica",G54) -> No Aplica | AC54: =IF($D$15<1,"No Aplica",(G54*$AB$6)) -> No Aplica | AD54: =IF($D$15<1,"No Aplica",H54) -> No Aplica | AE54: =IF($D$15<1,"No Aplica",(H54*$AB$6)) -> No Aplica
C55: Gastos de sepelio para el asegurado o su cónyuge o hijos, hasta | F55: 1000 | G55: 2000 | H55: 3000 | I55: =IF($D$11="Dólares ( US$ )",Z55,AA55) -> No Aplica | J55: =IF($D$11="Dólares ( US$ )",AB55,AC55) -> No Aplica | K55: =IF($D$11="Dólares ( US$ )",AD55,AE55) -> No Aplica | L55: Sin Deducible | Z55: =IF(D15<1,"No Aplica",F55) -> No Aplica | AA55: =IF(D15<1,"No Aplica",(F55*$AB$6)) -> No Aplica | AB55: =IF($D$15<1,"No Aplica",G55) -> No Aplica | AC55: =IF($D$15<1,"No Aplica",(G55*$AB$6)) -> No Aplica | AD55: =IF($D$15<1,"No Aplica",H55) -> No Aplica | AE55: =IF($D$15<1,"No Aplica",(H55*$AB$6)) -> No Aplica
C56: Gastos de sepelio para el trabajador del hogar, hasta | F56: 1000 | G56: 2000 | H56: 3000 | I56: =IF($D$11="Dólares ( US$ )",Z56,AA56) -> No Aplica | J56: =IF($D$11="Dólares ( US$ )",AB56,AC56) -> No Aplica | K56: =IF($D$11="Dólares ( US$ )",AD56,AE56) -> No Aplica | L56: Sin Deducible | Z56: =IF(D15<1,"No Aplica",F56) -> No Aplica | AA56: =IF(D15<1,"No Aplica",(F56*$AB$6)) -> No Aplica | AB56: =IF($D$15<1,"No Aplica",G56) -> No Aplica | AC56: =IF($D$15<1,"No Aplica",(G56*$AB$6)) -> No Aplica | AD56: =IF($D$15<1,"No Aplica",H56) -> No Aplica | AE56: =IF($D$15<1,"No Aplica",(H56*$AB$6)) -> No Aplica
C58: Claúsulas y Condiciones Especiales
C59: - POLIZA DE SEGURO DOMICILIARIO
C60: - 003 CL ROBO DE INSTALACIONES FIJAS | K60: - 012 CL DAÑOS DURANTE EL TRASLADO DEL CONTENIDO ASEGURADO AL ALOJAMIENTO TEMPORAL
C61: - 004 CL MUERTE ACCIDENTAL DEL ASEGURADO O DE SU CONYUGE O CONVIVIENTE | K61: - 013 CL PERDIDA DE ALIMENTOS EN EQUIPOS DE REFRIGERACIÓN
C62: - 005 CL GASTOS DE CURACION DE EMPLEADOS (TRABAJADORES DEL HOGAR) | K62: - 014 CL GASTOS POR EMERGENCIAS MÉDICAS A TERCEROS
C63: - 006 CL DAÑOS INTERNOS DE EQUIPOS ELECTRÓNICOS Y EQUIPOS ELÉCTRICOS | K63: - 015 CL RESPONSABILIDAD CIVIL PATRONAL (FRENTE AL TRABAJADOR DEL HOGAR)
C64: - 007 CL ROBO CONTENIDOS ESPECIALES DENTRO O FUERA DE LOS PREDIOS | K64: - 016 CL PERDIDA DE EQUIPAJE POR VIAJE DENTRO O FUERA DEL PAIS
C65: - 008 CL DINERO EN TRÁNSITO SOLO POR ASALTO | K65: - 017 CL DESHONESTIDAD O APROPIACION ILICITA DE TRABAJADORES DEL HOGAR
C66: - 009 CL DINERO EN EFECTIVO DENTRO DE LA VIVIENDA | K66: - 019 CL GASTOS DE SEPELIO PARA EL ASEGURADO O SU CONYUGE O HIJOS
C67: - 010 CL ASISTENCIA MÉDICA URGENTE POR LESIONES EN UN ROBO | K67: - 020 CL GASTOS DE SEPELIO PARA EL TRABAJADOR DEL HOGAR
C68: - 011 CL ALOJAMIENTO TEMPORAL POR INHABILITACIÓN DE LA VIVIENDA | K68: - 021 CL RESPONSABILIDAD CIVIL POR POSESION DE MASCOTAS
C69: - Las Sumas Aseguradas son límites únicos para la vigencia del seguro y se encuentran sujetas a los limites por evento indicados en cada cobertura.
C72: Beneficios
C73: Linea Positiva Salud
C74: - Consejería médica gratuita vía telefónica
C75: - Consulta médica domiciliaria, en la comodidad de su hogar. Se brinda a través de nuestro staff de médicos en las especialidades de medicina general y pediatría. (Sólo en Lima).
C76: - Envío de ambulancia por accidente o emergencia (En coordinación con la empresa).
C77: Linea Positiva Hogar
C78: - Atención de emergencias en el hogar, eléctricas, de gasfitería, cerrajería, electricista, vidriería, fumigación interna y de áreas verdes, exterminación de roedores, traslado, recojo o envío de paquetes, Análisis de la estructura del hogar y envío y pago de especialistas en puertas levadizas por emergencias a domicilio. El servicio no incluye materiales
C80: Asistencia de Seguridad
C81: - Valet Parking, en caso de evento en la casa del Asegurado
C82: - Guardián, en caso de evento o robo e inhabitalidad de la casa del Asegurado.
C83: - Coordinación de bloqueo de tarjetas
C84: Estos beneficios están disponibles en algunas ciudades, sujetos al tipo de servicio requerido y al radio de acción. Se aplican restricciones por zona y horario. Las presentes asistencias se encuentran sujetas al pago de un deducible a cargo del Asegurado por cada evento.
C86: Exclusiones
C87: - Viviendas en cuyo interior se efectúen labores comerciales, industriales o de servicios
C88: - Viviendas ubicadas a una distancia menor a 500 metros del mar
C89: - Viviendas, casas y departamentos cuyo material de construcción predomínate NO sea ladrillo, cemento y fierro
C90: - Viviendas ubicadas en asentamientos informales o asentamientos humanos o en lotes no urbanizados o en lotes rurales o en condición de infravivienda
C92: Importante
C93: - El Asegurado deberá completar y firmar la Solicitud de Seguro
C97: TASA NETA ANUAL COBERTURA PRINCIPAL (Aplicado al Valor Declarado de Vivienda + Contenido asegurada) | I97: 0.00165 | J97: 0.00165 | K97: 0.00165
C98: TASA NETA ANUAL COB. ESPECIALES (Aplicado al Valor Declarado del contenido Asegurado | I98: 0.007 | J98: 0.01 | K98: 0.012
I99: =IF($D$17=1,($D$16*I97)*1.03,(($D$16*I97)+($D$15*I98))*1.03) -> 67.98 | J99: =IF(D15=0,"No Aplica",IF($D$17=1,($D$16*J97)*1.03,(($D$16*J97)+($D$15*J98))*1.03)) -> No Aplica | K99: =IF(D15=0,"No aplica",IF($D$17=1,($D$16*K97)*1.03,((($D$16*K97)+($D$15*K98))*1.03))) -> No aplica
I100: =+I99/1.2 -> 56.65 | J100: =+J99/1.2 ->  | K100: =+K99/1.2 -> 
C101: DESCUENTO | D101: 0
D102: 0.05
D103: 0.1
D104: 0.15
D105: 0.2

Sheet CasaMAR
C2: COTIZACIÓN DE SEGURO DOMICILIARIO CASAMAR
W3: Dólares ( US$ ) | Y3: A. Programa Básico | AC3: Concreto Armado
C4: Contratante | W4: Sol ( S/ ) | Y4: B. Programa Básico + Programa Full | AC4: Ladrillo y Cemento
C5: Asegurado | AC5: Estructura de Acero
C6: Corredor | H6: Oficina | M6: Ejecutivo Comercial | W6: Tipo de Cambio | X6: 3.25 | AC6: Madera y/o Adobe y/o quincha
C7: Ubicación del riesgo
C8: Datos SBS | D8: Tipo de Estructura | E8: Concreto Armado | G8: =IF(E8=AC6,"No cotizar"," ") ->  | H8: Año Construc. | J8: 0 | L8: Nro. Pisos | N8: 0 | P8: Nro. Sótanos | R8: 0
C9: COBERTURAS SOLICITADAS | D9: B. Programa Básico + Programa Full
C10: Vigencia | D10: 1 Año | K10: Fecha de Cotización | P10: =TODAY() -> 2020-01-15 | V10: https://exceltotal.com/ocultar-datos-en-excel-con-formato-condicional/
C11: Moneda | D11: Dólares ( US$ ) | K11: Validez de la Cotización | P11: 15 días | V11: http://www.compartir-tecnologias.es/ocultar-mostrar-filas-autoamticamente-pro-medio-formula-o-funcion-ayuda-204308052.html
C13: Valores Declarados | D13: =D11 -> Dólares ( US$ ) | K13: Primas
C14: - Vivienda (Edificio) | D14: 100000 | K14: Prima Comercial | O14: =IF($D$11="Dólares ( US$ )","US$","S/") -> US$ | P14: =IF(AND(D11="Dólares ( US$ )",(M92<150)),150,IF(AND(D11="Sol ( S/ )",M92<500),500,M92)) -> 195.7
C15: - Contenido | K15: Prima Comercial + IGV Anual | O15: =IF($D$11="Dólares ( US$ )","US$","S/") -> US$ | P15: =+P14*1.18 -> 230.926
C16: TOTAL ASEGURADO | D16: =SUM(D14:D15) -> 100000 | K16: Descuento | O16: 0 | P16: =IF(O16>0%,"Ver con Area Técnica LP"," ") -> 
D17: =+IF(D9=Y3,1,0) -> 0
K18: Prima Comercial + IGV Anual | O18: =IF($D$11="Dólares ( US$ )","US$","S/") -> US$ | P18: =IF(AND($D$11="Dólares ( US$ )",(P14*(1-O16)<150)),(150*1.18),IF(AND($D$11="Sol ( S/ )",P15*(1-O16)<500),(500*1.18),P15*(1-O16))) -> 230.926
C20: Coberturas | F20: Suma Asegurada Maxima | G20: Suma Asegurada | H20: Deducibles
G21: =+D11 -> Dólares ( US$ ) | U21: SA Dolares | V21: SA Soles | W21: deducibles minimos en dolares
C22: I. PROGRAMA BASICO
C23: Incendio, Riesgos de la Naturaleza y Riesgos Politicos Este seguro cubre la destrucción o daño físico directo de la vivienda y su contenido como consecuencia directa de: incendio, explosión, daños por agua, lluvia e inundación, terremoto, temblor, erupción volcánica, maremoto (Tsunami), caída de aeronaves, impacto de vehículos, daños por humo, huelga y conmoción civil, daño malicioso, vandalismo y/o terrorismo.
F24: Hasta el 100% de la Suma Asegurada (SA) de la Vivienda + Contenido | G24: =+D16 -> 100000 | H24: - Todo evento cubierto: 10% del Monto Indemnizable mínimo | O24: =IF($D$11="Dólares ( US$ )","US$","S/") -> US$ | P24: =IF($D$11="Dólares ( US$ )",W24,(W24*$X$6)) -> 500 | Q24: , excepto: | W24: 500
H25: - Huelga y conmoción civil, daño malicioso, vandalismo y/o terrorismo: 5% del | W25: 500
H26: monto indemnizable mínimo | L26: =IF($D$11="Dólares ( US$ )","US$","S/") -> US$ | M26: =IF($D$11="Dólares ( US$ )",W25,(W25*$X$6)) -> 500
H27: - Terremoto, temblor erupción volcánica, maremoto (tsunami), salida de mar,
H28: marejada, oleaje: 1% de la Suma Asegurada de la Vivienda + Contenido, mínimo
H29: 20% del Monto Indemnizable o, | L29: =IF($D$11="Dólares ( US$ )","US$","S/") -> US$ | M29: =IF($D$11="Dólares ( US$ )",W29,(W29*$X$6)) -> 2000 | N29: ,lo que resulte mayor | W29: 2000
C30: Rotura de vidrios, espejos y unidades sanitarias, hasta el 10% de la Suma Asegurada de la Vivienda, máximo: | F30: 15000 | G30: =IF($D$11="Dólares ( US$ )",U30,V30) -> 10000 | H30: 10% del Monto Indemnizable, mínimo | M30: =IF($D$11="Dólares ( US$ )","US$","S/") -> US$ | N30: =IF($D$11="Dólares ( US$ )",W30,(W30*$X$6)) -> 30 | U30: =IF(D14*0.1<F30,D14*0.1,F30) -> 10000 | V30: =IF(D14*0.1<F30*$X$6,D14*0.1,F30*$X$6) -> 10000 | W30: 30
C31: Gastos de remoción de escombros, hasta el 10% de la Suma Asegurada de la Vivienda + Contenido, máximo: | F31: 30000 | G31: =IF($D$11="Dólares ( US$ )",U31,V31) -> 10000 | H31: Sin Deducible | U31: =IF(D16*0.1<F31,D16*0.1,F31) -> 10000 | V31: =IF(D16*0.1<F31*$X$6,D16*0.1,F31*$X$6) -> 10000
C32: Gastos de extinción y contención del siniestro, hasta el 10% de la Suma Asegurada de la Vivienda + Contenido, máximo: | F32: 30000 | G32: =IF($D$11="Dólares ( US$ )",U32,V32) -> 10000 | H32: Sin Deducible | U32: =IF(D16*0.1<F32,D16*0.1,F32) -> 10000 | V32: =IF(D16*0.1<F32*$X$6,D16*0.1,F32*$X$6) -> 10000
C33: Robo de Instalaciones fijas, hasta el 20% de la Suma Asegurada de la Vivienda máximo | F33: 10000 | G33: =IF($D$11="Dólares ( US$ )",U33,V33) -> 10000 | H33: 15% del Monto Indemnizable, mínimo | M33: =IF($D$11="Dólares ( US$ )","US$","S/") -> US$ | N33: =IF($D$11="Dólares ( US$ )",W33,(W33*$X$6)) -> 200 | U33: =IF(D14*0.2<F33,D14*0.2,F33) -> 10000 | V33: =IF(D14*0.2<F33*$X$6,D14*0.2,F33*$X$6) -> 20000 | W33: 200
C34: Responsabilidad Civil
C35: Responsabilidad civil Extracontractual Frente a Terceros, hasta: | F35: 100000 | G35: =IF(G33=0,0,IF($D$11="Dólares ( US$ )",U35,V35)) -> 100000 | H35: =IF($D$11="Dólares ( US$ )","US$","S/") -> US$ | I35: =IF($D$11="Dólares ( US$ )",W35,(W35*$X$6)) -> 200 | U35: =+F35 -> 100000 | V35: =+F35*X6 -> 325000 | W35: 200
C36: Gastos por emergencias médicas de terceros, hasta US$ 1,000 por persona, y en agregado vigencia máximo: | F36: 3000 | G36: =IF(G33=0,0,IF($D$11="Dólares ( US$ )",U36,V36)) -> 3000 | H36: Sin Deducible | U36: =+F36 -> 3000 | V36: =+F36*X6 -> 9750
C37: Responsabilidad Civil Patronal (frente al trabajador del hogar), por evento y en el agregado vigencia hasta: | F37: 20000 | G37: =IF(G33=0,0,IF($D$11="Dólares ( US$ )",U37,V37)) -> 20000 | H37: Sin Deducible | U37: =+F37 -> 20000 | V37: =+F37*X6 -> 65000
C38: 1.2.4 - Responsabilidad Civil por los daños personales que ocasione la posesión de mascotas, hasta: | F38: 30000 | G38: =IF($D$11="Dólares ( US$ )",U38,V38) -> 30000 | H38: Sin Deducible | U38: =+F38 -> 30000 | V38: =+F38*X6 -> 97500
C39: II. PROGRAMA FULL
C40: Robo | H40: Eventos ocurridos entre: | W40: 500
C41: Robo de Bienes Contenidos en la Vivienda hasta | F41: Hasta el 100% de la Suma Asegurada del Contenido | G41: =IF($D$15<1,"No Aplica",D15) -> No Aplica | H41: Diciembre a Abril: 10% del Monto Indemnizable, mínimo | P41: =IF($D$11="Dólares ( US$ )","US$","S/") -> US$ | Q41: =IF($D$11="Dólares ( US$ )",W40,(W40*$X$6)) -> 500 | W41: 2500
H42: Mayo a Noviembre: 15% del Monto Indemnizable, mínimo | P42: =IF($D$11="Dólares ( US$ )","US$","S/") -> US$ | Q42: =IF($D$11="Dólares ( US$ )",W41,(W41*$X$6)) -> 2500
C43: 2.1.2 Contenidos Especiales (joyas, alhajas, perlas, platería, relojes personales, obras de arte, pieles, instrumentos musicales y colecciones en general) que se encuentren dentro de la vivienda y con un límite por bien de US$1,000. La Suma Asegurada está limitada al 30% de la suma asegurada del Contenido, máximo: | F43: 15000 | G43: =IF($D$11="Dólares ( US$ )",U43,V43) -> 0 | H43: 10% del Monto Indemnizable, mínimo | L43: =IF($D$11="Dólares ( US$ )","US$","S/") -> US$ | M43: =IF($D$11="Dólares ( US$ )",W43,(W43*$X$6)) -> 300 | U43: =IF(D15*0.3<F43,D15*0.3,F43) -> 0 | V43: =IF(D15*0.3<F43*$X$6,D15*0.3,F43*$X$6) -> 0 | W43: 300
C44: Robo de Dinero en efectivo dentro de la vivienda, hasta US$ 1,000 por evento, máximo | F44: 3000 | G44: =IF($D$11="Dólares ( US$ )",U44,V44) -> No Aplica | H44: =IF($D$11="Dólares ( US$ )","US$","S/") -> US$ | I44: =IF($D$11="Dólares ( US$ )",W44,(W44*$X$6)) -> 50 | U44: =IF($D$15<1,"No Aplica",F44) -> No Aplica | V44: =IF($D$15<1,"No Aplica",F44*$X$6) -> No Aplica | W44: 50
C45: 2.1.4 - Dinero en Tránsito solo por Asalto, maximo | F45: 2000 | G45: =IF($D$11="Dólares ( US$ )",U45,V45) -> 0 | H45: Sin Deducible | U45: =IF(D15=0,0,F45) -> 0 | V45: =IF(D15=0,0,F45*$X$6) -> 0
C46: Especiales
C47: Daños internos de equipos electrónicos y equipos eléctricos, hasta el 10% de la Suma Asegurada del Contenido, máximo: | F47: 5000 | G47: =IF($D$11="Dólares ( US$ )",U47,V47) -> No Aplica | H47: 10% del Monto Indemnizable, mínimo | M47: =IF($D$11="Dólares ( US$ )","US$","S/") -> US$ | N47: =IF($D$11="Dólares ( US$ )",W47,(W47*$X$6)) -> 50 | U47: =IF($D$15<1,"No Aplica",IF(D15*0.1<F47,D15*0.1,F47)) -> No Aplica | V47: =IF($D$15<1,"No Aplica",IF(D15*0.1<F47*$X$6,D15*0.1,F47*$X$6)) -> No Aplica | W47: 50
C48: Asistencia médica urgente por lesiones en un robo con un límite por persona de US$1,000 y en la vigencia hasta: | F48: 5000 | H48: Sin Deducible
G49: =IF($D$11="Dólares ( US$ )",U49,V49) -> No Aplica | U49: =IF($D$15<1,"No Aplica",F48) -> No Aplica | V49: =IF($D$15<1,"No Aplica",F48*$X$6) -> No Aplica
C50: Alojamiento temporal por inhabilitación de la vivienda, con un límite mensual de US$ 1,000 y en la vigencia hasta: | F50: 3000 | G50: =IF(G33=0,0,IF($D$11="Dólares ( US$ )",U50,V50)) -> 3000 | H50: Sin Deducible | U50: =F50 -> 3000 | V50: =F50*$X$6 -> 9750
C51: Daños durante el traslado del contenido asegurado al alojamiento temporal, hasta el 50% de la Suma Asegurada del Contenido, máximo: | F51: 7500 | G51: No Aplica | H51: 10% del Monto Indemnizable, mínimo | M51: =IF($D$11="Dólares ( US$ )","US$","S/") -> US$ | N51: =IF($D$11="Dólares ( US$ )",W51,(W51*$X$6)) -> 50 | U51: =IF($D$15<1,"No Aplica",IF(D15*0.5<F51,D15*0.5,F51)) -> No Aplica | V51: =IF($D$15<1,"No Aplica",IF(D15*0.5<F51*$X$6,D15*0.5,F51*$X$6)) -> No Aplica | W51: 50
C52: Perdida de alimentos en equipos de refrigeración, hasta el 5% de la Suma Asegurada del Contenido, máximo: | F52: 1500 | G52: No Aplica | H52: 10% del Monto Indemnizable, mínimo | M52: =IF($D$11="Dólares ( US$ )","US$","S/") -> US$ | N52: =IF($D$11="Dólares ( US$ )",W52,(W52*$X$6)) -> 50 | U52: =IF($D$15<1,"No Aplica",IF(D15*0.05<F52,D15*0.05,F52)) -> No Aplica | V52: =IF($D$15<1,"No Aplica",IF(D15*0.05<F52*$X$6,D15*0.05,F52*$X$6)) -> No Aplica | W52: 50
C53: 2.2.6 Pérdida de equipaje y/o de los bienes portados por el Asegurado y/o cónyuge y/o hijos en caso de viaje dentro o fuera del país, hasta el 10% de la Suma Asegurada del Contenido, máximo: | F53: 5000 | G53: 0 | H53: Sin Deducible | U53: =IF(D15*0.1<F53,D15*0.1,F53) -> 0 | V53: =IF(D15*0.1<F53*$X$6,D15*0.1,F53*$X$6) -> 0
C54: Deshonestidad o apropiación ilícita de trabajadores del hogar, hasta: | F54: 1500 | G54: No Aplica | H54: 10% del Monto Indemnizable, mínimo | M54: =IF($D$11="Dólares ( US$ )","US$","S/") -> US$ | N54: =IF($D$11="Dólares ( US$ )",W54,(W54*$X$6)) -> 200 | U54: =IF($D$15<1,"No Aplica",F54) -> No Aplica | V54: =IF($D$15<1,"No Aplica",(F54*$X$6)) -> No Aplica | W54: 200
C55: Accidentes Personales
C56: Compensación por Muerte accidental del Asegurado o de su cónyuge o conviviente | F56: 10000 | G56: =IF($D$11="Dólares ( US$ )",U56,V56) -> No Aplica | H56: Sin Deducible | U56: =IF($D$15<1,"No Aplica",F56) -> No Aplica | V56: =IF($D$15<1,"No Aplica",(F56*$X$6)) -> No Aplica
C57: Gastos de Curación de empleados (Trabajadores del hogar), hasta US$ 1,000 por evento, maximo: | F57: 3000 | G57: =IF($D$11="Dólares ( US$ )",U57,V57) -> No Aplica | H57: Sin Deducible | U57: =IF($D$15<1,"No Aplica",F57) -> No Aplica | V57: =IF($D$15<1,"No Aplica",(F57*$X$6)) -> No Aplica
C58: 2.3.3 Gastos de Sepelio del Asegurado y/o conyuge y/o hijos | F58: 3000 | G58: =IF($D$11="Dólares ( US$ )",U58,V58) -> 0 | H58: Sin Deducible | U58: =IF(D15=0,0,F58) -> 0 | V58: =IF(D15=0,0,(F58*$X$6)) -> 0
C59: 2.3.4 Gastos de Sepelio por muerte del trabajador del hogar | F59: 3000 | G59: =IF($D$11="Dólares ( US$ )",U59,V59) -> 0 | H59: Sin Deducible | U59: =IF(D15=0,0,F59) -> 0 | V59: =IF(D15=0,0,(F59*$X$6)) -> 0
C61: Claúsulas y Condiciones Especiales
C62: - POLIZA DE SEGURO DOMICILIARIO | G62: =+CasaPLUS!C68 -> - 011 CL ALOJAMIENTO TEMPORAL POR INHABILITACIÓN DE LA VIVIENDA
C63: =+CasaPLUS!K62 -> - 014 CL GASTOS POR EMERGENCIAS MÉDICAS A TERCEROS | G63: =+CasaPLUS!C67 -> - 010 CL ASISTENCIA MÉDICA URGENTE POR LESIONES EN UN ROBO
C64: =+CasaPLUS!K65 -> - 017 CL DESHONESTIDAD O APROPIACION ILICITA DE TRABAJADORES DEL HOGAR | G64: =+CasaPLUS!C63 -> - 006 CL DAÑOS INTERNOS DE EQUIPOS ELECTRÓNICOS Y EQUIPOS ELÉCTRICOS
C65: =+CasaPLUS!K63 -> - 015 CL RESPONSABILIDAD CIVIL PATRONAL (FRENTE AL TRABAJADOR DEL HOGAR) | G65: =+CasaPLUS!C61 -> - 004 CL MUERTE ACCIDENTAL DEL ASEGURADO O DE SU CONYUGE O CONVIVIENTE
C66: =+CasaPLUS!C60 -> - 003 CL ROBO DE INSTALACIONES FIJAS | G66: =+CasaPLUS!C66 -> - 009 CL DINERO EN EFECTIVO DENTRO DE LA VIVIENDA
C67: =+CasaPLUS!K60 -> - 012 CL DAÑOS DURANTE EL TRASLADO DEL CONTENIDO ASEGURADO AL ALOJAMIENTO TEMPORAL | G67: =+CasaPLUS!K61 -> - 013 CL PERDIDA DE ALIMENTOS EN EQUIPOS DE REFRIGERACIÓN
C68: =+CasaPLUS!C62 -> - 005 CL GASTOS DE CURACION DE EMPLEADOS (TRABAJADORES DEL HOGAR)
C69: - Las Sumas Aseguradas son límites únicos para la vigencia del seguro y se encuentran sujetas a los limites por evento indicados en cada cobertura.
G71: - 022 CE Todo Riesgo | L71: - 008 CL Robo de dinero en efectivo fuera de la vivienda
C72: - 019 CE Gastos de sepelio por muerte del Asegurado | D72: - 018 CL Robo contenidos especiales dentro de los predios | G72: - 021 CE RC por posesion de mascotas | L72: - 016 CE Perdida de equipaje por viaje
C74: Beneficios
C75: Linea Positiva Salud | E75: Linea Positiva Hogar | H75: Asistencia de Seguridad
C76: - Consejería médica gratuita vía telefónica | E76: - Atención de emergencias en el hogar, eléctricas, de gasfitería, cerrajería, electricista, vidriería, fumigación interna y de áreas verdes, exterminación de roedores, traslado, recojo o envío de paquetes, Análisis de la estructura del hogar y envío y pago de especialistas en puertas levadizas por emergencias a domicilio. El servicio no incluye materiales | H76: - Valet Parking, en caso de evento en la casa del Asegurado
C77: - Consulta médica domiciliaria, en la comodidad de su hogar. Se brinda a través de nuestro staff de médicos en las especialidades de medicina general y pediatría. (Sólo en Lima). | H77: - Guardián, en caso de evento o robo e inhabitalidad de la casa del Asegurado. - Coordinación de bloqueo de tarjetas
C78: - Envío de ambulancia por accidente o emergencia (En coordinación con la empresa).
C79: Estos beneficios están disponibles en algunas ciudades, sujetos al tipo de servicio requerido y al radio de acción. Se aplican restricciones por zona y horario. Las presentes asistencias se encuentran sujetas al pago de un deducible a cargo del Asegurado por cada evento.
C81: Exclusiones
C82: - Viviendas en cuyo interior se efectúen labores comerciales, industriales o de servicios
C83: - Viviendas ubicadas a una distancia menor a 100 metros del mar
C84: - Viviendas, casas y departamentos cuyo material de construcción predomínate NO sea ladrillo, cemento y fierro
C85: - Viviendas ubicadas en asentamientos informales o asentamientos humanos o en lotes no urbanizados o en lotes rurales o en condición de infravivienda
C88: Importante
C89: - El Asegurado deberá completar y firmar la Solicitud de Seguro
C92: TASA NETA ANUAL COBERTURA PRINCIPAL (Aplicado al Valor Declarado de Vivienda + Contenido asegurada) | K92: 0.0019 | M92: =IF(D17=1,(D16*K92)*1.03,((D16*K92)+(D15*K93))*1.03) -> 195.7
C93: TASA NETA ANUAL COB. ESPECIALES (Aplicado al Valor Declarado del contenido Asegurado | K93: 0.008 | N93: Prima minima? | P93: =IF(O14="S/",650*1.18,200*1.18) -> 236
Q103: 7
Q106: PRIMA NETA ANUAL
Q107: =+D3*Q103/1000 -> 0
Q108: =+Q34 -> 0
Q109: =+Q55+Q57 -> 0
Q110: =SUM(Q108:Q109) -> 0
Q111: =+Q107-Q108-Q109 -> 0
Q112: =(Q107-Q110)/D3*1000 -> 
C114: Porcentaje Participacion Real %
C116: =+Q108/Q107% ->  | D116: =+#REF!/#REF!% ->  | Q116: 27
C117: =+Q109/Q107% ->  | D117: =+#REF!/#REF!% ->  | Q117: 30
C119: =+Q111/Q107% ->  | D119: =+#REF!/#REF!% ->  | Q119: =100-Q116-Q117 -> 43
P124: Observaciones
C125: 3.1.5 Robo de dinero en efectivo fuera de la vivienda asegurada portada por el Asegurado y/o su conyuge | F125: 2000 | G125: =IF($D$16>0,F125,0) -> 2000 | H125: SD | P125: nueva cobertura
C126: 2.4. Responsabilidad Civil por posesión de mascotas | F126: 30000 | G126: =IF($D$16>0,F126,0) -> 30000 | H126: SD | P126: nueva cobertura
C127: 3.2.6 Pérdida de equipaje y/o de los bienes portados por el Asegurado y/o cónyuge y/o hijos en caso de viaje dentro o fuera del país, hasta el 10% de la Suma Asegurada del Contenido, máximo: | F127: 5000 | G127: =IF($D$15*0.1<F127,$D$15*0.1,F127) -> 0 | H127: SD
C128: 3.3.3 Gastos de Sepelio del Asegurado y/o conyuge y/o hijos | F128: 3000 | G128: =IF($D$16>0,F128,0) -> 3000 | H128: SD | P128: nueva cobertura
C129: 3.3.4 Gastos de Sepelio por muerte del trabajador del hogar | F129: 3000 | G129: =IF($D$16>0,F129,0) -> 3000 | H129: SD | P129: nueva cobertura
C130: PRIMA COMERCIAL + IGV
